bitfinex/quotes_SOLUSD_20241115
["timestamp","ask_amount","ask_price","bid_price","bid_amount"]
[1731693501786,0.12549,211.13,211.03,14.80988437]
[1731693502821,0.12549,211.13,211.04,14.80988437]
[1731693503110,2.8419,211.12,211.04,14.80988437]
[1731693503507,2.8419,211.12,211.03,14.80988437]
[1731693503710,2.8418,211.14,211.07,14.80988437]
[1731693503894,2.8418,211.14,211.05,14.80988437]
[1731693504099,2.8418,211.14,211.04,14.80988437]
[1731693504299,2.8418,211.14,211.05,14.80988437]
[1731693504807,2.8418,211.14,211.06,4.7379]
[1731693505107,2.8418,211.14,211.06,16.5828]
[1731693506412,2.8418,211.14,211.06,14.80988437]
[1731693506789,2.8418,211.14,211.05,14.80988437]
[1731693506991,2.8418,211.14,211.06,14.80988437]
[1731693507814,15.2424,211.16,211.07,19.54758437]
[1731693507815,18.0839,211.16,211.07,19.54758437]
[1731693508010,18.0839,211.16,211.09,14.80988437]
[1731693508206,18.0839,211.16,211.08,14.80988437]
[1731693508916,18.0839,211.16,211.08,9.47647889]
[1731693509213,18.0839,211.16,211.06,9.47647889]
[1731693509508,18.0839,211.16,211.05,9.47647889]
[1731693509712,0.12549,211.15,211.03,9.47647889]
[1731693510098,18.0839,211.16,211.03,9.47647889]
[1731693510299,18.0839,211.16,211.04,9.47647889]
[1731693511016,20.0,211.15,211.05,16.5837]
[1731693511405,20.0,211.15,211.05,26.06017889]
[1731693511597,20.0,211.15,211.07,9.47647889]
[1731693511797,20.0,211.15,211.06,9.47647889]
[1731693512009,2.8417,211.14,211.05,21.32197889]
[1731693512913,2.8417,211.14,211.06,0.12549]
[1731693514519,2.8417,211.14,211.06,16.5828]
[1731693514720,2.8417,211.14,211.06,11.8449]
[1731693515320,2.8417,211.14,211.06,16.5828]
[1731693516221,2.8417,211.14,211.06,11.8449]
[1731693519525,2.8417,211.14,211.01,11.8473]
[1731693519820,23.776884,211.11,211.0,4.7391]
[1731693519996,15.6735,211.09,210.97,11.94327462]
[1731693520202,39.450384,211.09,210.98,4.7395]
[1731693521508,23.776884,211.07,210.98,4.7395]
[1731693522221,23.776884,211.07,210.97,11.94327462]
[1731693523325,23.776884,211.07,210.97,16.68327462]
[1731693523519,2.8427,211.06,210.97,16.68327462]
[1731693523824,15.6735,211.09,210.98,0.12549]
[1731693524123,2.8426,211.08,210.99,14.81135616]
[1731693524305,15.6735,211.09,211.01,14.81135616]
[1731693524508,2.8421,211.11,211.02,14.81135616]
[1731693524918,2.8421,211.11,211.01,14.81135616]
[1731693525208,2.8421,211.11,211.02,0.12549]
[1731693525619,2.8419,211.12,211.03,4.7386]
[1731693526821,2.8419,211.12,211.03,31.39655616]
[1731693527022,2.8419,211.12,211.03,16.5852]
[1731693527723,2.8419,211.12,211.04,0.12549]
[1731693527930,22.4982,211.14,211.05,14.81135616]
[1731693528126,16.3273,211.14,211.08,14.93684616]
[1731693528426,2.8412,211.18,211.1,0.12549]
[1731693528615,2.8412,211.18,211.1,14.93684616]
[1731693528822,16.0417,211.19,211.1,14.93684616]
[1731693529005,16.0417,211.19,211.11,14.81135616]
[1731693529401,18.8827,211.19,211.12,14.93684616]
[1731693529607,0.4639995,211.23,211.14,0.12549]
[1731693529824,2.8408,211.21,211.14,4.86149]
[1731693531727,2.8408,211.21,211.13,0.12549]
[1731693532108,2.8408,211.21,211.12,16.5776]
[1731693532421,2.8408,211.21,211.12,31.38895616]
[1731693533725,2.8408,211.21,211.13,0.12549]
[1731693533928,2.8408,211.21,211.14,4.7361]
[1731693534226,20.4639995,211.23,211.14,4.7361]
[1731693534227,20.4639995,211.23,211.15,14.81135616]
[1731693534431,3.3044995,211.23,211.16,14.81135616]
[1731693534825,0.4639995,211.23,211.16,14.81135616]
[1731693535434,0.4639995,211.23,211.15,14.81135616]
[1731693535732,0.4639995,211.23,211.16,0.12549]
[1731693536032,0.4639995,211.23,211.15,0.12549]
[1731693536217,0.4639995,211.23,211.15,16.70129]
[1731693537232,0.4639995,211.23,211.17,4.7355]
[1731693537734,0.4639995,211.23,211.18,0.12549]
[1731693541834,3.3044995,211.23,211.15,16.5756]
[1731693542235,3.3044995,211.23,211.16,0.12549]
[1731693542821,23.3044995,211.23,211.13,0.12549]
[1731693544327,23.776884,211.22,211.12,16.5782]
[1731693544530,20.0,211.21,211.12,16.5782]
[1731693544832,20.0,211.21,211.12,11.8416]
[1731693545028,2.8409,211.2,211.1,4.737]
[1731693545247,23.776884,211.19,211.08,16.5809]
[1731693545544,2.8409,211.2,211.09,9.47148953]
[1731693545743,20.0,211.18,211.08,16.5809]
[1731693546927,2.8413,211.17,211.08,11.8436]
[1731693547626,2.8413,211.17,211.09,0.12549]
[1731693548240,2.8411,211.19,211.11,0.12549]
[1731693549641,2.8411,211.19,211.12,4.7366]
[1731693550136,2.8408,211.21,211.12,16.5782]
[1731693550356,3.3045995,211.23,211.13,0.12549]
[1731693551825,3.3045995,211.23,211.15,0.12549]
[1731693552443,23.3045995,211.23,211.15,0.12549]
[1731693554044,23.3045995,211.23,211.16,4.7357]
[1731693555127,0.4639995,211.23,211.17,0.12549]
[1731693555724,0.21916462,211.21,211.06,16.5828]
[1731693555924,23.99604862,211.21,211.06,16.5828]
[1731693556247,35.85506093,211.21,211.06,16.5828]
[1731693556630,0.09367462,211.19,211.06,16.5828]
[1731693556941,20.0,211.18,211.07,0.12549]
[1731693557147,22.8411,211.18,211.07,0.12549]
[1731693557726,22.8411,211.18,211.05,0.12549]
[1731693557929,22.8411,211.18,211.04,0.09367462]
[1731693558244,22.8411,211.18,211.05,0.12549]
[1731693558438,22.8411,211.18,211.04,0.21916462]
[1731693558743,23.776884,211.15,211.05,11.8455]
[1731693559048,20.0,211.14,211.05,11.8455]
[1731693559750,23.776884,211.13,211.02,4.7388]
[1731693559956,20.0,211.12,211.02,4.7388]
[1731693561150,20.0,211.12,211.03,0.12549]
[1731693561354,2.8421,211.11,211.03,0.12549]
[1731693563757,2.8421,211.11,211.03,4.86399]
[1731693564836,23.776884,211.15,211.03,4.86399]
[1731693565149,20.0,211.14,211.03,4.86399]
[1731693566349,43.26774862,211.13,211.01,16.5865]
[1731693566548,20.0,211.1,210.97,23.79367462]
[1731693566733,20.0,211.1,210.99,4.7393]
[1731693567954,20.0,211.1,211.0,0.12549]
[1731693568131,2.8423,211.09,211.0,0.12549]
[1731693568733,2.8423,211.09,210.99,4.7393]
[1731693568963,2.8423,211.09,210.99,0.12549]
[1731693569954,23.776884,211.08,210.98,11.8494]
[1731693570351,2.8426,211.07,210.98,11.8494]
[1731693570549,22.8426,211.07,210.97,0.21916462]
[1731693570855,36.1022,211.05,210.97,0.09367462]
[1731693572234,2.843,211.04,210.97,4.83347462]
[1731693572438,20.0,211.0,210.97,0.09367462]
[1731693572636,20.0,210.96,210.87,11.8552]
[1731693573664,20.0,210.96,210.87,16.5974]
[1731693573851,20.0,210.96,210.87,16.0974]
[1731693574160,20.0,210.96,210.87,11.3552]
[1731693574364,2.8442,210.95,210.87,11.3552]
[1731693576359,22.8437,210.99,210.87,11.3552]
[1731693576564,20.0,210.97,210.87,11.3552]
[1731693577167,2.8437,210.99,210.88,0.12549]
[1731693577465,2.8437,210.99,210.89,14.81276325]
[1731693577843,2.8437,210.99,210.9,0.12549]
[1731693578362,2.8437,210.99,210.89,0.12549]
[1731693578567,0.09367462,211.03,210.89,14.81276325]
[1731693578774,46.83914862,211.03,210.9,31.53365325]
[1731693579066,46.71365862,211.03,210.91,14.81276325]
[1731693579263,46.71365862,211.03,210.9,16.72089]
[1731693579563,26.71365862,211.03,210.9,16.72089]
[1731693579861,26.71365862,211.03,210.92,16.5939]
[1731693580047,21.8773,211.1,211.0,14.81276325]
[1731693580843,21.8773,211.1,210.99,14.93825325]
[1731693581164,21.8773,211.1,210.99,0.12549]
[1731693581343,2.8424,211.09,210.99,4.86479]
[1731693581760,22.8424,211.09,210.99,4.86479]
[1731693582361,22.8424,211.09,210.99,16.71369]
[1731693583764,22.8424,211.09,210.99,31.52645325]
[1731693584363,0.09367462,211.06,210.95,31.40396325]
[1731693584564,20.0,211.05,210.95,11.851]
[1731693584954,20.0,211.05,210.95,16.5914]
[1731693585155,23.87055862,211.04,210.95,16.5914]
[1731693585362,20.0,211.03,210.95,11.851]
[1731693586166,20.0,210.99,210.9,11.8536]
[1731693587170,2.8438,210.98,210.9,11.8536]
[1731693587673,23.87055862,210.97,210.85,18.5207]
[1731693587976,23.87055862,210.95,210.85,11.8563]
[1731693588851,2.8444,210.94,210.85,16.5988]
[1731693590568,22.8444,210.94,210.85,11.8563]
[1731693591469,20.0,210.92,210.85,11.8563]
[1731693592064,20.0,210.92,210.84,0.09367462]
[1731693592251,23.87055862,210.91,210.84,0.09367462]
[1731693592664,2.8449,210.9,210.84,0.09367462]
[1731693594262,2.8452,210.88,210.84,0.09367462]
[1731693596085,26.621984,210.89,210.84,0.09367462]
[1731693597775,20.0,210.88,210.84,0.09367462]
[1731693598773,23.776884,210.87,210.84,0.09367462]
[1731693599075,26.622284,210.87,210.84,0.09367462]
[1731693599277,23.776884,210.85,210.84,0.09367462]
[1731693599472,43.87055862,210.85,210.84,0.09367462]
[1731693600764,43.776884,210.85,210.84,0.09367462]
[1731693601074,46.622484,210.85,210.84,0.09367462]
[1731693601371,20.21916462,210.84,210.82,9.44256014]
[1731693601551,20.21916462,210.84,210.73,16.6085]
[1731693601552,23.776884,210.81,210.73,11.8633]
[1731693601751,20.21916462,210.82,210.69,28.4766]
[1731693601752,0.09367462,210.78,210.69,28.4766]
[1731693601970,0.09367462,210.78,210.69,4.7461]
[1731693602157,20.09367462,210.78,210.69,16.6118]
[1731693602359,23.776884,210.82,210.71,14.81276325]
[1731693602568,23.776884,210.82,210.72,14.81276325]
[1731693602759,20.0,210.84,210.73,14.81276325]
[1731693603080,0.09367462,210.83,210.74,16.608]
[1731693603254,22.8458,210.84,210.74,16.608]
[1731693603457,15.9728,210.85,210.75,14.93825325]
[1731693603675,22.8452,210.88,210.76,14.81276325]
[1731693603868,0.09367462,210.87,210.76,14.81276325]
[1731693604270,2.8452,210.88,210.77,14.81276325]
[1731693604476,2.8452,210.88,210.78,14.81276325]
[1731693604659,2.8452,210.88,210.81,14.81276325]
[1731693604985,18.3092,210.9,210.82,4.7433]
[1731693605163,2.845,210.9,210.82,4.7433]
[1731693605363,2.845,210.9,210.82,19.55606325]
[1731693605565,2.845,210.9,210.82,31.41446325]
[1731693605760,2.845,210.9,210.82,16.6017]
[1731693606682,0.09367462,210.92,210.82,16.6017]
[1731693606991,0.09367462,210.89,210.8,4.7436]
[1731693607160,20.0,210.88,210.8,4.7436]
[1731693607471,23.87055862,210.87,210.78,16.6047]
[1731693607678,20.0,210.86,210.78,16.6047]
[1731693607888,20.0,210.86,210.78,31.41746325]
[1731693608088,20.0,210.86,210.78,16.6047]
[1731693608765,0.12549,210.91,210.78,31.41746325]
[1731693608969,20.09367462,210.88,210.78,31.41746325]
[1731693609172,2.8449,210.9,210.8,14.93825325]
[1731693610688,2.93827462,210.92,210.81,16.6026]
[1731693610879,23.776884,210.91,210.81,16.6026]
[1731693611079,20.0,210.9,210.81,16.6026]
[1731693611771,2.845,210.89,210.81,11.859]
[1731693611975,0.09367462,210.86,210.77,16.6052]
[1731693612177,0.09367462,210.86,210.74,37.49356325]
[1731693612178,39.72754862,210.86,210.74,22.6808]
[1731693612369,23.99604862,210.84,210.73,16.6085]
[1731693612577,23.87055862,210.82,210.73,16.6085]
[1731693613767,2.8461,210.81,210.73,11.8633]
[1731693613963,23.87055862,210.8,210.73,11.8633]
[1731693614485,0.09367462,210.78,210.71,4.7458]
[1731693614678,0.12549,210.71,210.54,22.75]
[1731693614982,0.09367462,210.66,210.59,11.8711]
[1731693615678,0.09367462,210.66,210.55,4.7494]
[1731693615862,2.8483,210.65,210.55,4.7494]
[1731693616062,2.8483,210.65,210.55,31.43576325]
[1731693616260,23.87055862,210.64,210.55,16.623]
[1731693617569,2.8481,210.67,210.56,23.81333723]
[1731693617984,23.87055862,210.66,210.55,40.43633723]
[1731693618180,23.87055862,210.66,210.55,16.623]
[1731693618390,0.09367462,210.64,210.55,16.623]
[1731693618766,23.776884,210.63,210.55,16.623]
[1731693618993,2.8481,210.67,210.55,40.43633723]
[1731693619287,20.0,210.67,210.58,23.81333723]
[1731693619479,2.8472,210.73,210.6,23.81333723]
[1731693619683,0.09367462,210.72,210.6,23.81333723]
[1731693620001,0.09367462,210.72,210.61,23.81333723]
[1731693620290,22.8472,210.73,210.63,23.81333723]
[1731693620500,24.6328,210.75,210.64,23.81333723]
[1731693620670,2.8469,210.76,210.65,23.81333723]
[1731693620871,2.8469,210.76,210.64,23.81333723]
[1731693621069,2.8469,210.76,210.65,23.81333723]
[1731693621383,2.8466,210.78,210.68,23.81333723]
[1731693621581,0.09367462,210.77,210.68,23.81333723]
[1731693621890,2.8466,210.78,210.68,23.81333723]
[1731693622090,24.2964,210.8,210.68,23.81333723]
[1731693622298,24.2964,210.8,210.69,23.81333723]
[1731693622470,24.2964,210.8,210.65,22.3182]
[1731693622471,24.2964,210.8,210.68,23.81333723]
[1731693622665,24.2964,210.8,210.69,16.612]
[1731693622979,0.09367462,210.79,210.69,16.612]
[1731693623276,20.09367462,210.79,210.69,16.612]
[1731693623876,23.776884,210.78,210.69,16.612]
[1731693624867,26.623484,210.78,210.69,16.612]
[1731693628174,23.776884,210.78,210.69,16.612]
[1731693628488,20.0,210.79,210.69,40.42533723]
[1731693628704,2.8464,210.8,210.71,23.81333723]
[1731693628997,23.776884,210.79,210.71,23.81333723]
[1731693629199,0.12549,210.83,210.72,23.81333723]
[1731693629373,23.902374,210.83,210.71,23.81333723]
[1731693629705,0.09367462,210.82,210.71,23.81333723]
[1731693630199,22.6505,210.85,210.72,23.93882723]
[1731693630386,2.8459,210.83,210.72,40.42293723]
[1731693630577,2.8459,210.83,210.73,23.81333723]
[1731693630773,2.8459,210.83,210.72,40.42293723]
[1731693631099,20.0,210.81,210.72,40.42293723]
[1731693631594,20.0,210.84,210.75,23.81333723]
[1731693631796,19.3145,210.85,210.75,23.81333723]
[1731693631987,23.776884,210.84,210.75,23.81333723]
[1731693632701,2.8454,210.87,210.77,23.81333723]
[1731693633078,0.09367462,210.86,210.77,23.81333723]
[1731693633288,2.8454,210.87,210.77,23.81333723]
[1731693633694,2.8454,210.87,210.78,16.6049]
[1731693633879,0.09367462,210.86,210.75,4.7447]
[1731693634281,0.09367462,210.86,210.74,11.8629]
[1731693634891,24.12153862,210.84,210.71,4.7456]
[1731693635092,23.99604862,210.82,210.71,4.7456]
[1731693635482,0.09367462,210.8,210.71,4.7456]
[1731693635676,2.8464,210.79,210.69,16.6115]
[1731693636601,2.8464,210.79,210.69,11.8652]
[1731693636785,2.8464,210.79,210.69,35.67853723]
[1731693637300,22.8462,210.81,210.7,23.93882723]
[1731693637503,2.8458,210.84,210.75,23.81333723]
[1731693637698,2.8458,210.84,210.76,23.81333723]
[1731693638003,2.8452,210.88,210.76,23.81333723]
[1731693638604,0.09367462,210.87,210.77,23.81333723]
[1731693638798,0.09367462,210.87,210.71,0.21916462]
[1731693638799,0.09367462,210.87,210.76,23.81333723]
[1731693639000,23.87055862,210.85,210.76,23.81333723]
[1731693639206,20.0,210.88,210.78,23.81333723]
[1731693639388,2.8453,210.88,210.79,23.81333723]
[1731693639787,19.4613,210.9,210.81,23.81333723]
[1731693639989,2.845,210.9,210.81,23.81333723]
[1731693640190,2.845,210.9,210.8,23.81333723]
[1731693640589,2.845,210.9,210.79,23.81333723]
[1731693640795,2.93817462,210.93,210.8,16.6033]
[1731693640983,2.93817462,210.93,210.81,23.81333723]
[1731693641184,20.09367462,210.91,210.8,40.41663723]
[1731693641503,20.0,210.89,210.8,16.6033]
[1731693641802,20.0,210.89,210.8,40.41663723]
[1731693642196,20.0,210.89,210.81,23.81333723]
[1731693642703,22.845,210.89,210.81,23.81333723]
[1731693643005,22.845,210.89,210.81,14.84670873]
[1731693643908,22.845,210.89,210.82,4.7433]
[1731693644306,22.845,210.89,210.81,14.84670873]
[1731693644604,23.776884,210.86,210.77,11.8612]
[1731693644997,0.09367462,210.84,210.73,14.84670873]
[1731693645211,23.99604862,210.82,210.73,11.8634]
[1731693645393,23.776884,210.8,210.73,11.8634]
[1731693645808,23.776884,210.8,210.68,14.84670873]
[1731693645991,2.8464,210.79,210.69,14.84670873]
[1731693646189,2.8464,210.79,210.68,16.6128]
[1731693646190,2.8464,210.79,210.68,31.45950873]
[1731693646492,2.8464,210.79,210.69,14.97219873]
[1731693646699,26.623184,210.8,210.7,14.84670873]
[1731693647004,26.623184,210.8,210.69,23.77846981]
[1731693647935,26.623184,210.8,210.7,16.6112]
[1731693648807,20.21916462,210.79,210.66,39.95106981]
[1731693649000,23.776884,210.76,210.66,16.6141]
[1731693649385,20.0,210.75,210.68,23.77846981]
[1731693649612,20.0,210.75,210.66,16.6141]
[1731693649613,20.0,210.75,210.67,23.77846981]
[1731693649794,20.0,210.75,210.66,40.39256981]
[1731693650294,23.902374,210.8,210.7,23.77846981]
[1731693650599,23.776884,210.78,210.7,23.77846981]
[1731693651002,20.0,210.79,210.7,23.77846981]
[1731693651199,23.776884,210.78,210.7,23.77846981]
[1731693651416,23.776884,210.78,210.71,4.7458]
[1731693651417,26.623384,210.78,210.71,4.7458]
[1731693651608,26.623384,210.78,210.69,11.8652]
[1731693653614,0.21916462,210.75,210.66,4.7467]
[1731693654912,23.776884,210.76,210.68,23.77846981]
[1731693655115,2.97149,210.82,210.72,23.77846981]
[1731693655425,2.846,210.82,210.73,23.77846981]
[1731693655608,2.846,210.82,210.72,23.77846981]
[1731693656299,0.09367462,210.81,210.69,23.77846981]
[1731693656509,0.09367462,210.81,210.68,16.6128]
[1731693656696,24.12153862,210.81,210.68,16.6128]
[1731693657010,20.0,210.76,210.68,16.6128]
[1731693657218,23.776884,210.75,210.68,16.6128]
[1731693657519,26.623884,210.75,210.68,11.8663]
[1731693658717,20.0,210.74,210.65,4.7472]
[1731693659999,22.8471,210.74,210.65,16.6152]
[1731693660508,22.8471,210.74,210.66,23.77846981]
[1731693661320,22.8471,210.74,210.65,23.77846981]
[1731693661508,22.8471,210.74,210.67,4.7467]
[1731693662106,145.5,210.81,210.67,4.7467]
[1731693662107,145.5,210.81,210.71,23.77846981]
[1731693662421,2.846,210.82,210.72,23.77846981]
[1731693662604,2.846,210.82,210.73,23.77846981]
[1731693662804,0.09367462,210.81,210.73,23.77846981]
[1731693663206,2.846,210.82,210.73,23.77846981]
[1731693663416,2.846,210.82,210.74,16.608]
[1731693663713,0.1,210.9,210.74,16.608]
[1731693663714,2.8454,210.86,210.78,23.77846981]
[1731693663900,7.112,210.91,210.74,16.608]
[1731693663901,2.8449,210.9,210.81,23.77846981]
[1731693664107,2.8449,210.9,210.8,23.77846981]
[1731693664302,2.8449,210.9,210.79,23.77846981]
[1731693664824,0.09367462,210.89,210.78,23.77846981]
[1731693665029,0.09367462,210.89,210.77,23.77846981]
[1731693665232,20.09367462,210.87,210.74,40.38646981]
[1731693665438,0.09367462,210.85,210.74,16.608]
[1731693665725,0.09367462,210.85,210.74,40.38646981]
[1731693665928,0.21916462,210.85,210.74,40.38646981]
[1731693666224,23.776884,210.83,210.74,40.38646981]
[1731693666637,23.776884,210.83,210.7,11.865]
[1731693666638,20.21916462,210.82,210.7,11.865]
[1731693666831,23.776884,210.81,210.7,35.64346981]
[1731693667018,0.21916462,210.78,210.7,11.865]
[1731693667216,20.0,210.74,210.67,4.7466]
[1731693667531,23.776884,210.73,210.66,11.8673]
[1731693667908,20.0,210.72,210.66,11.8673]
[1731693669132,23.776884,210.71,210.63,4.7476]
[1731693670509,20.21916462,210.7,210.61,16.6176]
[1731693670715,20.0,210.68,210.61,16.6176]
[1731693671634,23.776884,210.67,210.59,4.7484]
[1731693672135,23.776884,210.67,210.59,40.39826981]
[1731693672317,23.776884,210.67,210.59,16.6198]
[1731693672632,2.8481,210.66,210.59,16.6198]
[1731693672845,23.776884,210.68,210.61,23.77846981]
[1731693673131,16.2282,210.7,210.61,23.77846981]
[1731693673314,20.0,210.69,210.59,40.39826981]
[1731693673520,0.21916462,210.68,210.59,11.8714]
[1731693674740,23.776884,210.66,210.59,11.8714]
[1731693675335,20.0,210.65,210.59,11.8714]
[1731693676344,26.625084,210.66,210.59,11.8714]
[1731693676530,20.0,210.65,210.59,11.8714]
[1731693676844,20.0,210.63,210.55,16.6229]
[1731693677017,20.0,210.61,210.52,4.7499]
[1731693677224,23.776884,210.6,210.52,4.7499]
[1731693677433,23.776884,210.58,210.52,4.7499]
[1731693677643,23.776884,210.58,210.5,16.6265]
[1731693677967,23.776884,210.59,210.5,16.6265]
[1731693678723,23.776884,210.58,210.5,16.6265]
[1731693679027,23.776884,210.58,210.5,11.876]
[1731693679227,20.0,210.57,210.5,40.40496981]
[1731693679634,20.0,210.57,210.5,16.6265]
[1731693680044,23.776884,210.59,210.51,23.77846981]
[1731693680220,23.776884,210.59,210.5,40.40496981]
[1731693680535,2.8489,210.61,210.53,23.77846981]
[1731693680536,23.776884,210.61,210.53,23.77846981]
[1731693682043,16.0096,210.65,210.5,16.6265]
[1731693682044,22.8485,210.64,210.54,23.77846981]
[1731693682232,22.8485,210.64,210.55,23.77846981]
[1731693682430,22.8485,210.64,210.54,23.77846981]
[1731693682644,22.8485,210.64,210.53,23.77846981]
[1731693682822,0.09367462,210.63,210.5,40.40536981]
[1731693683026,0.09367462,210.61,210.5,16.6269]
[1731693683527,23.99604862,210.57,210.49,0.4639995]
[1731693683728,20.0,210.56,210.49,0.4639995]
[1731693683935,23.776884,210.55,210.49,0.4639995]
[1731693684143,26.626584,210.55,210.49,0.4639995]
[1731693684335,23.776884,210.53,210.49,0.4639995]
[1731693684829,20.09367462,210.57,210.49,5.2146995]
[1731693685028,23.776884,210.54,210.49,0.4639995]
[1731693685228,23.776884,210.52,210.49,0.4639995]
[1731693685626,23.776884,210.5,210.49,0.4639995]
[1731693686147,20.0,210.53,210.49,0.4639995]
[1731693686439,23.776884,210.53,210.49,0.4639995]
[1731693687333,2.8498,210.54,210.49,0.4639995]
[1731693688445,0.10324755,210.5,210.49,0.4639995]
[1731693689753,0.10324755,210.5,210.49,24.24246931]
[1731693691047,0.10324755,210.5,210.49,0.4639995]
[1731693692345,0.32241217,210.5,210.49,0.4639995]
[1731693696856,0.10324755,210.5,210.49,0.4639995]
[1731693697356,0.32241217,210.5,210.49,0.4639995]
[1731693697746,0.10324755,210.5,210.49,0.4639995]
[1731693698052,0.19692217,210.5,210.49,0.4639995]
[1731693698354,0.10324755,210.5,210.49,0.4639995]
[1731693699355,0.32241217,210.5,210.49,0.4639995]
[1731693702333,27.07508617,210.5,210.49,0.4639995]
[1731693702527,47.07508617,210.5,210.49,0.4639995]
[1731693704146,204.92593862,210.49,210.37,21.9856]
[1731693704563,0.09367462,210.43,210.35,16.6384]
[1731693704760,0.21916462,210.43,210.35,16.6384]
[1731693704950,0.09367462,210.41,210.35,11.8846]
[1731693705251,23.99604862,210.41,210.32,22.0581]
[1731693705561,20.0,210.4,210.32,26.8125]
[1731693705742,20.0,210.4,210.32,53.59632469]
[1731693706154,23.99604862,210.39,210.28,31.54152469]
[1731693706745,23.99604862,210.37,210.28,16.6443]
[1731693706962,0.21916462,210.35,210.28,16.6443]
[1731693707167,0.09367462,210.33,210.27,0.4639995]
[1731693707358,23.99604862,210.33,210.27,0.4639995]
[1731693707862,20.0,210.32,210.27,0.4639995]
[1731693708365,0.21916462,210.33,210.27,5.2196995]
[1731693708667,0.09171762,210.28,210.27,5.2196995]
[1731693709262,0.09171762,210.28,210.27,0.4639995]
[1731693711557,0.31088224,210.28,210.27,0.4639995]
[1731693712250,0.09171762,210.28,210.27,0.4639995]
[1731693712453,0.18539224,210.28,210.27,0.4639995]
[1731693713143,43.96227624,210.28,210.27,0.4639995]
[1731693713443,44.08776624,210.28,210.27,0.4639995]
[1731693713657,60.24615624,210.28,210.27,0.4639995]
[1731693714358,60.12066624,210.28,210.27,0.4639995]
[1731693714555,20.09171762,210.28,210.27,0.4639995]
[1731693716144,0.09171762,210.28,210.27,0.4639995]
[1731693718466,44.08776624,210.28,210.27,0.4639995]
[1731693721062,44.21325624,210.28,210.27,0.4639995]
[1731693721641,0.09171762,210.28,210.27,0.4639995]
[1731693722156,0.18539224,210.28,210.27,0.4639995]
[1731693722991,44.08776624,210.28,210.27,0.4639995]
[1731693727365,20.09171762,210.28,210.27,0.4639995]
[1731693727664,0.09171762,210.28,210.27,0.4639995]
[1731693727846,0.31088224,210.28,210.27,0.4639995]
[1731693728252,24.21325624,210.28,210.27,0.4639995]
[1731693728446,0.18686938,210.28,210.27,0.4639995]
[1731693729548,0.09515176,210.28,210.27,0.4639995]
[1731693731768,0.09515176,210.28,210.27,15.36122419]
[1731693731961,0.09515176,210.28,210.27,0.4639995]
[1731693732271,0.09515176,210.28,210.27,15.36122419]
[1731693732766,0.09515176,210.28,210.27,30.38882419]
[1731693736170,0.09515176,210.28,210.27,0.4639995]
[1731693738966,0.09515176,210.28,210.27,15.36122419]
[1731693740054,0.09515176,210.28,210.27,30.50771419]
[1731693740469,0.08591762,210.3,210.27,30.50771419]
[1731693740658,0.08591762,210.3,210.29,14.89722469]
[1731693740980,0.08591762,210.3,210.29,15.02271469]
[1731693741671,2.8511,210.45,210.31,0.12549]
[1731693741851,2.8512,210.44,210.32,14.89722469]
[1731693742052,2.8516,210.41,210.32,14.89722469]
[1731693742364,2.8514,210.43,210.32,14.89722469]
[1731693742871,2.8518,210.39,210.3,46.57882469]
[1731693743064,2.852,210.38,210.3,31.6816]
[1731693743371,2.95673868,210.36,210.3,26.9265]
[1731693743571,2.93933669,210.35,210.3,26.9265]
[1731693743866,0.08693669,210.35,210.3,46.57882469]
[1731693744075,0.08693669,210.35,210.32,14.89722469]
[1731693745053,0.08693669,210.35,210.3,11.8877]
[1731693745259,2.94283568,210.33,210.27,0.4639995]
[1731693745484,0.09013568,210.33,210.27,0.4639995]
[1731693745671,0.09013568,210.33,210.28,14.89722469]
[1731693745853,0.09013568,210.33,210.29,14.89722469]
[1731693746054,0.09013568,210.33,210.32,14.89722469]
[1731693747160,0.09013568,210.33,210.32,36.37222469]
[1731693747765,0.09013568,210.33,210.32,26.2296]
[1731693747971,0.09013568,210.33,210.32,41.12682469]
[1731693748486,0.17603505,210.33,210.32,41.12682469]
[1731693748857,0.17603505,210.33,210.32,56.14953938]
[1731693749065,0.18067987,210.34,210.32,81.19608536]